bitfinex/quotes_BTCUSD_20240101
["timestamp","ask_amount","ask_price","bid_price","bid_amount"]
[1704068429938,1.31669542,42516.0,42515.0,0.12199685]
[1704068430158,1.77710642,42516.0,42515.0,0.12199685]
[1704068430362,1.54608687,42516.0,42515.0,0.12199685]
[1704068430613,1.64608687,42516.0,42515.0,0.12199685]
[1704068430828,1.68710405,42516.0,42515.0,0.12199685]
[1704068431040,1.68710405,42516.0,42515.0,0.02871]
[1704068431460,1.65890067,42516.0,42515.0,0.12199685]
[1704068431679,1.44890067,42516.0,42515.0,0.17509685]
[1704068431898,1.18848967,42516.0,42515.0,0.02871]
[1704068432525,0.97848967,42516.0,42515.0,0.02871]
[1704068432750,0.7541481,42516.0,42515.0,0.08187]
[1704068433166,0.669539,42516.0,42515.0,0.08187]
[1704068433372,0.72594465,42516.0,42515.0,0.08187]
[1704068435113,0.669539,42516.0,42515.0,0.08187]
[1704068435332,0.7541481,42516.0,42515.0,0.08187]
[1704068435579,0.75416026,42516.0,42515.0,0.08187]
[1704068436232,0.95416026,42516.0,42515.0,0.08187]
[1704068436440,0.95416026,42516.0,42515.0,0.02871]
[1704068437095,0.95416026,42516.0,42515.0,0.26192711]
[1704068437096,0.75416026,42516.0,42515.0,0.26192711]
[1704068439116,0.28374926,42516.0,42515.0,0.26192711]
[1704068439569,0.669539,42516.0,42515.0,0.26192711]
[1704068439781,0.7541596,42516.0,42515.0,0.26192711]
[1704068442638,0.2837486,42516.0,42515.0,0.26192711]
[1704068442823,0.7541596,42516.0,42515.0,0.26192711]
[1704068444082,0.7541596,42516.0,42515.0,0.31436711]
[1704068444299,0.7541596,42516.0,42515.0,0.26192711]
[1704068445829,0.75416782,42516.0,42515.0,0.26192711]
[1704068446283,0.669539,42516.0,42515.0,0.26192711]
[1704068447625,1.17984226,42516.0,42515.0,0.02871]
[1704068448035,1.06702846,42516.0,42515.0,0.02871]
[1704068448253,1.20804564,42516.0,42515.0,0.02871]
[1704068448994,0.869539,42516.0,42515.0,0.02871]
[1704068449209,1.20778546,42516.0,42515.0,0.02871]
[1704068449650,1.63711641,42516.0,42515.0,0.02871]
[1704068449861,2.37053754,42516.0,42515.0,0.02871]
[1704068450077,2.20124148,42516.0,42515.0,0.02871]
[1704068450895,0.508128,42514.0,42513.0,0.00449862]
[1704068451114,1.94616041,42514.0,42513.0,0.00449862]
[1704068451320,2.20028548,42514.0,42513.0,0.00449862]
[1704068451954,2.39081961,42514.0,42513.0,0.00449862]
[1704068452193,2.20628548,42514.0,42513.0,0.00449862]
[1704068453229,2.21328548,42514.0,42513.0,0.00449862]
[1704068453462,1.74285248,42514.0,42513.0,0.00449862]
[1704068453665,1.55802793,42514.0,42513.0,0.00449862]
[1704068453869,1.55202793,42514.0,42513.0,0.00449862]
[1704068454070,1.65202793,42514.0,42513.0,0.00449862]
[1704068454289,1.48872741,42514.0,42513.0,0.00449862]
[1704068454757,1.65802793,42514.0,42513.0,0.00449862]
[1704068454959,1.65202793,42514.0,42513.0,0.00449862]
[1704068455165,1.48872741,42514.0,42513.0,0.00449862]
[1704068455366,1.28872741,42514.0,42513.0,0.00449862]
[1704068455575,1.38872741,42514.0,42513.0,0.00449862]
[1704068455807,1.52975974,42514.0,42513.0,0.00449862]
[1704068456239,1.38872741,42514.0,42513.0,0.00449862]
[1704068456817,1.52975238,42514.0,42513.0,0.00449862]
[1704068458434,1.38872741,42514.0,42513.0,0.00449862]
[1704068459059,1.52974437,42514.0,42513.0,0.00449862]
[1704068459476,1.38872741,42514.0,42513.0,0.00449862]
[1704068459909,1.52974317,42514.0,42513.0,0.00449862]
[1704068460536,1.41974317,42514.0,42513.0,0.00449862]
[1704068460673,1.081561,42514.0,42513.0,0.00449862]
[1704068460877,1.37608359,42514.0,42513.0,0.00449862]
[1704068461138,1.52709339,42514.0,42513.0,0.00449862]
[1704068461568,1.38608359,42514.0,42513.0,0.00449862]
[1704068461972,1.52709538,42514.0,42513.0,0.00449862]
[1704068463765,1.54605983,42514.0,42513.0,0.00449862]
[1704068466676,1.17562683,42514.0,42513.0,0.00449862]
[1704068466887,1.64605983,42514.0,42513.0,0.00449862]
[1704068467574,2.11649283,42514.0,42513.0,0.00449862]
[1704068469118,2.11649283,42514.0,42504.0,0.02871]
[1704068469119,0.508128,42512.0,42504.0,0.02871]
[1704068469327,1.94356059,42512.0,42504.0,0.02871]
[1704068469548,2.6649484,42512.0,42504.0,0.02871]
[1704068470215,1.2535834,42512.0,42504.0,0.02871]
[1704068470423,2.6719484,42512.0,42504.0,0.02871]
[1704068471076,2.20134209,42512.0,42504.0,0.02871]
[1704068471749,0.408128,42507.0,42504.0,0.02871]
[1704068471974,1.37316059,42507.0,42504.0,0.02871]
[1704068472191,1.51409471,42507.0,42504.0,0.02871]
[1704068472803,1.51409471,42507.0,42506.0,0.03371]
[1704068473010,1.51409471,42507.0,42506.0,0.03671]
[1704068473865,1.51409471,42507.0,42506.0,0.03371]
[1704068474676,1.51409471,42507.0,42506.0,0.02871]
[1704068474870,1.51409471,42507.0,42506.0,0.03071]
[1704068475508,1.51409471,42507.0,42506.0,0.02871]
[1704068475726,1.51409471,42507.0,42506.0,0.03071]
[1704068476265,1.48582999,42507.0,42506.0,0.03071]
[1704068476903,1.51409471,42507.0,42506.0,0.03071]
[1704068477122,1.14358471,42507.0,42506.0,0.03071]
[1704068477338,1.94367059,42507.0,42506.0,0.03071]
[1704068478374,2.08447954,42507.0,42506.0,0.02871]
[1704068478602,1.98447954,42507.0,42506.0,0.02871]
[1704068478803,1.96131259,42507.0,42506.0,0.02871]
[1704068479021,1.653148,42507.0,42506.0,0.02871]
[1704068479327,1.649148,42507.0,42506.0,0.02871]
[1704068479525,1.7486258,42507.0,42506.0,0.03071]
[1704068479733,1.95991209,42507.0,42506.0,0.02971]
[1704068479879,2.06291209,42507.0,42506.0,0.02971]
[1704068480274,1.96291209,42507.0,42506.0,0.02971]
[1704068480726,1.02189209,42507.0,42506.0,0.02971]
[1704068480926,1.9630086,42507.0,42506.0,0.02971]
[1704068481297,2.0690086,42507.0,42506.0,0.03071]
[1704068482307,2.01427031,42507.0,42506.0,0.03071]
[1704068482539,1.9563666,42507.0,42506.0,0.03071]
[1704068484430,2.06898883,42507.0,42506.0,0.03071]
[1704068484639,1.9563666,42507.0,42506.0,0.03071]
[1704068484836,2.06898909,42507.0,42506.0,0.03071]
[1704068485336,1.9563666,42507.0,42506.0,0.03071]
[1704068485541,2.06899305,42507.0,42506.0,0.03071]
[1704068485722,1.57086505,42507.0,42506.0,0.03071]
[1704068485935,0.993638,42507.0,42506.0,0.07715]
[1704068486148,0.993638,42507.0,42506.0,0.31036711]
[1704068486149,0.683638,42507.0,42506.0,0.31036711]
[1704068487171,0.677638,42507.0,42506.0,0.30936711]
[1704068487594,0.680638,42507.0,42506.0,0.30936711]
[1704068488218,0.671638,42507.0,42506.0,0.30836711]
[1704068488423,0.675638,42507.0,42506.0,0.30740711]
[1704068490521,0.7319484,42507.0,42506.0,0.26192711]
[1704068490889,0.73198255,42507.0,42506.0,0.26192711]
[1704068491267,0.675638,42507.0,42506.0,0.26192711]
[1704068491470,0.73198255,42507.0,42506.0,0.26192711]
[1704068492324,0.675638,42507.0,42506.0,0.26192711]
[1704068492544,0.7601036,42507.0,42506.0,0.26192711]
[1704068492984,0.7320022,42507.0,42506.0,0.26192711]
[1704068493203,0.675638,42507.0,42506.0,0.30794711]
[1704068493416,0.73201122,42507.0,42506.0,0.30794711]
[1704068493741,0.7601036,42507.0,42506.0,0.26192711]
[1704068494187,0.73201149,42507.0,42506.0,0.26192711]
[1704068494398,0.7601036,42507.0,42506.0,0.26192711]
[1704068494831,0.73202016,42507.0,42506.0,0.26192711]
[1704068495038,0.7601036,42507.0,42506.0,0.26192711]
[1704068496769,0.73203162,42507.0,42506.0,0.30734711]
[1704068496978,0.73203162,42507.0,42506.0,0.34820711]
[1704068496979,0.105128,42507.0,42506.0,0.34820711]
[1704068497413,0.205128,42507.0,42506.0,0.43994711]
[1704068497649,0.205128,42507.0,42506.0,0.34820711]
[1704068497862,0.202128,42507.0,42506.0,0.44149396]
[1704068498117,0.203128,42507.0,42506.0,0.44149396]
[1704068498554,0.199128,42507.0,42506.0,0.44149396]
[1704068498954,0.201128,42507.0,42506.0,0.44149396]
[1704068499189,0.200128,42507.0,42506.0,0.44149396]
[1704068499451,0.668638,42507.0,42506.0,0.42043396]
[1704068499663,0.668638,42507.0,42506.0,0.35821396]
[1704068500091,0.668638,42507.0,42506.0,0.26992711]
[1704068500526,0.668638,42507.0,42506.0,0.26192711]
[1704068500947,0.668638,42507.0,42506.0,0.26392711]
[1704068501370,0.668638,42507.0,42506.0,0.31210711]
[1704068501593,0.668638,42507.0,42506.0,0.26392711]
[1704068501811,0.668638,42507.0,42506.0,0.30946711]
[1704068502061,0.668638,42507.0,42506.0,0.26392711]
[1704068502278,0.75321825,42507.0,42506.0,0.26392711]
[1704068502527,1.21305841,42507.0,42506.0,0.03071]
[1704068502734,1.06409234,42507.0,42506.0,0.03071]
[1704068503163,0.59358234,42507.0,42506.0,0.02871]
[1704068503581,1.20608412,42507.0,42506.0,0.02871]
[1704068503800,1.06509234,42507.0,42506.0,0.02871]
[1704068504009,1.06409234,42507.0,42506.0,0.02871]
[1704068504222,1.06809234,42507.0,42506.0,0.02871]
[1704068504664,1.20908489,42507.0,42506.0,0.02871]
[1704068504883,1.18088883,42507.0,42506.0,0.02871]
[1704068505100,0.75723438,42507.0,42506.0,0.32528711]
[1704068505311,0.73403206,42507.0,42506.0,0.32528711]
[1704068505529,0.72903206,42507.0,42506.0,0.32528711]
[1704068505935,0.26352206,42507.0,42506.0,0.32528711]
[1704068506152,0.25952719,42507.0,42506.0,0.32528711]
[1704068506368,0.28772438,42507.0,42506.0,0.32528711]
[1704068506586,0.51051968,42507.0,42506.0,0.32528711]
[1704068506808,0.53871574,42507.0,42506.0,0.26192711]
[1704068507018,1.00622574,42507.0,42506.0,0.26192711]
[1704068507247,1.00624744,42507.0,42506.0,0.26392711]
[1704068507462,0.86523319,42507.0,42506.0,0.26392711]
[1704068507698,1.00624864,42507.0,42506.0,0.26392711]
[1704068507912,0.86523319,42507.0,42506.0,0.26592711]
[1704068508124,1.06523319,42507.0,42506.0,0.03071]
[1704068508340,1.06523319,42507.0,42506.0,0.02871]
[1704068508545,1.07023319,42507.0,42506.0,0.02871]
[1704068508755,1.06523319,42507.0,42506.0,0.02871]
[1704068508982,1.06923319,42507.0,42506.0,0.02871]
[1704068509202,1.62553999,42507.0,42506.0,0.02871]
[1704068509436,1.88457499,42507.0,42506.0,0.02871]
[1704068509709,1.89205089,42507.0,42506.0,0.02971]
[1704068509914,1.73594288,42507.0,42506.0,0.02971]
[1704068510125,1.7357411,42507.0,42506.0,0.02971]
[1704068510327,1.7417411,42507.0,42506.0,0.03071]
[1704068510761,1.7337411,42507.0,42506.0,0.02971]
[1704068511207,1.7417411,42507.0,42506.0,0.001]
[1704068511427,0.508128,42505.0,42504.0,0.02871]
[1704068511643,1.4277631,42505.0,42504.0,0.02871]
[1704068511855,1.7277631,42505.0,42504.0,0.02871]
[1704068512554,1.7347631,42505.0,42504.0,0.02971]
[1704068514520,1.7347631,42505.0,42504.0,0.03071]
[1704068514521,1.7437631,42505.0,42504.0,0.03071]
[1704068514728,1.2732311,42505.0,42504.0,0.03071]
[1704068514944,1.7437631,42505.0,42504.0,0.03071]
[1704068515582,1.6437631,42505.0,42504.0,0.03071]
[1704068516001,1.19125519,42505.0,42504.0,0.03071]
[1704068516643,1.39125519,42505.0,42504.0,0.03071]
[1704068516857,1.29125519,42505.0,42504.0,0.03071]
[1704068517072,1.19125519,42505.0,42504.0,0.03071]
[1704068517498,1.39125519,42505.0,42504.0,0.03071]
[1704068517934,1.49125519,42505.0,42504.0,0.03071]
[1704068519496,1.86178719,42505.0,42504.0,0.03071]
[1704068519948,1.96178719,42505.0,42504.0,0.03071]
[1704068520585,1.86178719,42505.0,42504.0,0.03071]
[1704068521001,1.66178719,42505.0,42504.0,0.03071]
[1704068521652,1.86178719,42505.0,42504.0,0.03071]
[1704068522068,1.66178719,42505.0,42504.0,0.03071]
[1704068522284,2.00272908,42505.0,42504.0,0.03071]
[1704068522494,1.86178719,42505.0,42504.0,0.03071]
[1704068522699,2.00272951,42505.0,42504.0,0.03071]
[1704068523138,1.86178719,42505.0,42504.0,0.03071]
[1704068523339,2.02583729,42505.0,42504.0,0.03071]
[1704068523773,2.06307184,42505.0,42504.0,0.03071]
[1704068524416,2.02583729,42505.0,42504.0,0.03071]
[1704068526502,2.12583729,42505.0,42504.0,0.03071]
[1704068526926,2.2950159,42505.0,42504.0,0.03071]
[1704068527130,2.12583729,42505.0,42504.0,0.03071]
[1704068527336,2.2950159,42505.0,42504.0,0.03071]
[1704068527545,2.12583729,42505.0,42504.0,0.03071]
[1704068528613,2.12583729,42505.0,42504.0,0.12399685]
[1704068529089,1.96178719,42505.0,42504.0,0.12399685]
[1704068529946,1.39125519,42505.0,42504.0,0.12399685]
[1704068530154,1.50399139,42505.0,42504.0,0.12399685]
[1704068530373,1.40399139,42505.0,42504.0,0.12399685]
[1704068530582,1.40399139,42505.0,42504.0,0.03071]
[1704068530803,1.50399139,42505.0,42504.0,0.03071]
[1704068530988,1.30399139,42505.0,42504.0,0.12399685]
[1704068531265,1.29399139,42505.0,42504.0,0.12399685]
[1704068531543,1.49399139,42505.0,42504.0,0.12399685]
[1704068531766,1.29399139,42505.0,42504.0,0.12399685]
[1704068532176,1.50399139,42505.0,42504.0,0.12399685]
[1704068532603,1.19466,42505.0,42504.0,0.12399685]
[1704068532834,1.49132559,42505.0,42504.0,0.12399685]
[1704068533047,1.50132559,42505.0,42504.0,0.03071]
[1704068533260,1.3885828,42505.0,42504.0,0.03071]
[1704068533923,1.52951128,42505.0,42504.0,0.03071]
[1704068534138,1.49132996,42505.0,42504.0,0.03071]
[1704068534577,1.29132996,42505.0,42504.0,0.03071]
[1704068535001,1.09740716,42505.0,42504.0,0.03071]
[1704068535428,1.29125095,42505.0,42504.0,0.03071]
[1704068535894,0.99466,42505.0,42504.0,0.03071]
[1704068536104,1.1888869,42505.0,42504.0,0.03071]
[1704068536590,1.32981538,42505.0,42504.0,0.03071]
[1704068539144,1.1888869,42505.0,42504.0,0.03071]
[1704068539357,1.3298443,42505.0,42504.0,0.03071]
[1704068539773,1.1888869,42505.0,42504.0,0.03071]
[1704068542809,1.43264445,42505.0,42504.0,0.03071]
[1704068543124,1.2916649,42505.0,42504.0,0.03071]
[1704068543611,1.3016649,42505.0,42504.0,0.03071]
[1704068544287,1.1788869,42505.0,42504.0,0.26392711]
[1704068544487,1.29171243,42505.0,42504.0,0.33112711]
[1704068544891,1.06927814,42505.0,42504.0,0.33112711]
[1704068545300,1.06227814,42505.0,42504.0,0.33012711]
[1704068545721,0.97866,42505.0,42504.0,0.33012711]
[1704068545962,1.06328971,42505.0,42504.0,0.33012711]
[1704068546197,1.02607785,42505.0,42504.0,0.32912711]
[1704068546415,1.06128971,42505.0,42504.0,0.32912711]
[1704068546632,1.05428971,42505.0,42504.0,0.32912711]
[1704068546872,1.05428971,42505.0,42504.0,0.42241396]
[1704068547077,1.05728971,42505.0,42504.0,0.32912711]
[1704068547967,1.27962549,42505.0,42504.0,0.32912711]
[1704068548209,1.2801277,42505.0,42504.0,0.32912711]
[1704068548433,0.97266,42505.0,42504.0,0.32912711]
[1704068548671,1.05730385,42505.0,42504.0,0.32912711]
[1704068549127,1.28005553,42505.0,42504.0,0.32912711]
[1704068549798,1.17719192,42505.0,42504.0,0.32912711]
[1704068550033,1.31827679,42505.0,42504.0,0.26192711]
[1704068550490,1.17719192,42505.0,42504.0,0.26192711]
[1704068551719,1.16719192,42505.0,42504.0,0.26192711]
[1704068551929,1.17719192,42505.0,42504.0,0.26192711]
[1704068552603,1.31830809,42505.0,42504.0,0.26192711]
[1704068552821,0.70665992,42505.0,42504.0,0.26192711]
[1704068553030,0.70665992,42505.0,42504.0,0.35521396]
[1704068553459,1.17719192,42505.0,42504.0,0.35521396]
[1704068553695,0.70665992,42505.0,42504.0,0.35521396]
[1704068553907,0.39665992,42505.0,42504.0,0.35521396]
[1704068554125,0.53777574,42505.0,42504.0,0.35521396]
[1704068554333,0.39665992,42505.0,42504.0,0.35521396]
[1704068554547,0.98007796,42505.0,42504.0,0.35521396]
[1704068555207,0.75732149,42505.0,42504.0,0.35521396]
[1704068555626,0.75732149,42505.0,42504.0,0.31532711]
[1704068556081,0.75732149,42505.0,42504.0,0.26192711]
[1704068556521,0.67266,42505.0,42504.0,0.26192711]
[1704068556717,0.67266,42505.0,42504.0,0.31424711]
[1704068556926,0.75731207,42505.0,42504.0,0.26192711]
[1704068557201,0.97888438,42505.0,42504.0,0.26192711]
[1704068557640,0.67266,42505.0,42504.0,0.26192711]
[1704068557864,1.00693916,42505.0,42504.0,0.26192711]
[1704068558284,0.86582334,42505.0,42504.0,0.26192711]
[1704068558501,0.97870548,42505.0,42504.0,0.26192711]
[1704068559130,1.00693916,42505.0,42504.0,0.26192711]
[1704068559341,0.97871333,42505.0,42504.0,0.26192711]
[1704068559762,1.00693916,42505.0,42504.0,0.26192711]
[1704068559983,0.97871288,42505.0,42504.0,0.26192711]
[1704068561232,0.86582334,42505.0,42504.0,0.26192711]
[1704068562468,1.0069699,42505.0,42504.0,0.26192711]
[1704068562669,0.86582334,42505.0,42504.0,0.26192711]
[1704068563083,1.00696661,42505.0,42504.0,0.26192711]
[1704068563966,0.86582334,42505.0,42504.0,0.26192711]
[1704068564194,1.00696946,42505.0,42504.0,0.26192711]
[1704068564397,0.86582334,42505.0,42504.0,0.26192711]
[1704068564606,1.00697174,42505.0,42504.0,0.26192711]
[1704068570252,0.86582334,42505.0,42504.0,0.26192711]
[1704068570884,1.00698261,42505.0,42504.0,0.26192711]
[1704068571914,1.00698261,42505.0,42504.0,0.31496711]
[1704068573910,0.90698261,42505.0,42504.0,0.31496711]
[1704068574138,0.004,42505.0,42504.0,0.52072711]
[1704068574582,0.004,42505.0,42504.0,0.61401396]
[1704068574774,0.003,42505.0,42504.0,0.61401396]
[1704068575231,0.098128,42507.0,42504.0,0.61401396]
[1704068575438,0.098128,42507.0,42506.0,0.23321711]
[1704068575655,0.098128,42507.0,42506.0,0.32650396]
[1704068575859,0.098128,42507.0,42506.0,0.34950396]
[1704068576071,0.098128,42507.0,42506.0,0.56958396]
[1704068576484,0.098128,42507.0,42506.0,0.47629711]
[1704068577154,0.098128,42507.0,42506.0,0.48829711]
[1704068577368,0.098128,42508.0,42506.0,0.48829711]
[1704068577589,0.001,42507.0,42506.0,0.49829711]
[1704068577797,0.001,42507.0,42506.0,0.27821711]
[1704068578224,0.098128,42508.0,42506.0,0.49801711]
[1704068578700,0.099128,42508.0,42507.0,0.22188]
[1704068578914,0.098128,42508.0,42507.0,0.45509711]
[1704068579566,0.198128,42508.0,42507.0,0.45509711]
[1704068579790,0.198128,42508.0,42507.0,0.30227711]
[1704068580222,0.198128,42508.0,42507.0,0.31227711]
[1704068580871,0.199128,42508.0,42507.0,0.31227711]
[1704068581115,0.198128,42508.0,42507.0,0.31227711]
[1704068581328,0.199128,42508.0,42507.0,0.32127711]
[1704068591699,0.099128,42508.0,42507.0,0.32127711]
[1704068591924,0.001,42508.0,42507.0,0.76060396]
[1704068592159,0.098128,42517.0,42509.0,0.1]
[1704068592377,0.098128,42518.0,42514.0,0.23321711]
[1704068592616,0.098128,42518.0,42515.0,0.09328685]
[1704068592830,0.098128,42518.0,42517.0,0.23321711]
[1704068593041,0.098128,42518.0,42517.0,0.34950396]
[1704068593252,0.098128,42518.0,42517.0,0.60258396]
[1704068594334,0.098128,42518.0,42517.0,0.61058396]
[1704068594770,0.098128,42518.0,42517.0,0.62058396]
[1704068598734,0.098128,42519.0,42517.0,0.62058396]
[1704068598936,0.098128,42518.0,42517.0,0.29408]
[1704068599144,0.098128,42518.0,42517.0,0.041]
[1704068599359,0.098128,42518.0,42517.0,0.29144]
[1704068599567,0.098128,42518.0,42517.0,0.28344]
[1704068599784,0.098128,42518.0,42517.0,0.29044]
[1704068600013,0.098128,42518.0,42517.0,0.60694396]
[1704068600175,0.098128,42518.0,42517.0,0.50665711]
[1704068600387,0.098128,42518.0,42517.0,0.52465711]
[1704068600801,0.098128,42518.0,42517.0,0.51465711]
[1704068601199,0.098128,42518.0,42517.0,0.60794396]
[1704068601406,0.098128,42518.0,42517.0,0.61794396]
[1704068606166,0.098128,42518.0,42517.0,0.59494396]
[1704068606381,0.098128,42518.0,42517.0,0.42244396]
[1704068608545,0.198128,42518.0,42517.0,0.32915711]
[1704068608770,0.198128,42518.0,42517.0,0.25121711]
[1704068609217,0.668517,42518.0,42517.0,0.29663711]
[1704068609651,0.668517,42518.0,42517.0,0.25121711]
[1704068614159,0.198128,42518.0,42517.0,0.25121711]
[1704068614388,0.668517,42518.0,42517.0,0.25121711]
[1704068618673,0.668517,42518.0,42517.0,0.30401711]
[1704068618884,0.668517,42518.0,42517.0,0.25121711]
[1704068619538,0.668517,42518.0,42517.0,0.30383711]
[1704068621043,0.72498337,42518.0,42517.0,0.25121711]
[1704068621461,0.668517,42518.0,42517.0,0.25121711]
[1704068621663,0.72498337,42518.0,42517.0,0.25121711]
[1704068622136,0.668517,42518.0,42517.0,0.25121711]
[1704068626902,0.72498337,42518.0,42517.0,0.25121711]
[1704068629233,0.82498337,42518.0,42517.0,0.018]
[1704068629861,0.82498337,42518.0,42517.0,0.008]
[1704068630487,0.768517,42518.0,42517.0,0.01]
[1704068630667,0.768517,42518.0,42517.0,0.008]
[1704068631329,0.768517,42518.0,42512.0,0.0588]
[1704068631543,0.198128,42513.0,42511.0,0.2309]
[1704068631937,0.198128,42513.0,42512.0,0.06204]
[1704068632533,0.198128,42513.0,42512.0,0.06804]
[1704068632740,0.198128,42513.0,42512.0,0.29925711]
[1704068632899,0.198128,42513.0,42512.0,0.29525711]
[1704068633151,0.198128,42513.0,42512.0,0.31625711]
[1704068645711,0.198128,42513.0,42512.0,0.34307711]
[1704068646775,0.198128,42513.0,42512.0,0.33707711]
[1704068650831,0.05636575,42513.0,42512.0,0.93119211]
[1704068651094,0.05636575,42517.0,42512.0,0.99511211]
[1704068651298,0.15449375,42518.0,42514.0,0.23321711]
[1704068651459,0.098128,42519.0,42516.0,0.23321711]
[1704068651631,0.098128,42519.0,42517.0,0.09328685]
[1704068651815,0.098128,42519.0,42518.0,0.23321711]
[1704068652017,0.098128,42519.0,42518.0,0.47321711]
[1704068652473,0.098128,42519.0,42518.0,0.31631711]
[1704068653906,0.098128,42519.0,42518.0,0.32631711]
[1704068654739,0.098128,42519.0,42518.0,0.33431711]
[1704068654926,0.098128,42519.0,42518.0,0.42760396]
[1704068655935,0.098128,42519.0,42518.0,0.51796396]
[1704068657509,0.098128,42519.0,42518.0,0.42467711]
[1704068658336,0.098128,42519.0,42518.0,0.46331711]
[1704068658608,0.15456276,42523.0,42518.0,0.55660396]
[1704068658812,0.08465214,42524.0,42519.0,0.11628685]
[1704068658813,0.098128,42522.0,42519.0,0.11628685]
[1704068659014,0.098128,42522.0,42519.0,0.84573785]
[1704068659223,0.098128,42522.0,42521.0,0.23321711]
[1704068659428,0.098128,42522.0,42521.0,0.25621711]
[1704068659641,0.098128,42522.0,42521.0,0.50221711]
[1704068659849,0.098128,42522.0,42521.0,0.59550396]
[1704068660472,0.098128,42525.0,42521.0,0.60550396]
[1704068660681,0.098128,42523.0,42522.0,0.34950396]
[1704068660926,0.098128,42525.0,42522.0,0.58806396]
[1704068661337,0.098128,42525.0,42523.0,0.45382]
[1704068661494,0.26913185,42536.0,42524.0,0.09328685]
[1704068661495,0.05637728,42530.0,42524.0,0.09328685]
[1704068661691,0.098128,42527.0,42525.0,0.23321711]
[1704068661948,0.098128,42527.0,42526.0,0.09328685]
[1704068662202,0.098128,42527.0,42526.0,0.23321711]
[1704068662438,0.198128,42527.0,42526.0,0.66471711]
[1704068662809,0.198128,42527.0,42526.0,0.55821711]
[1704068663051,0.198128,42527.0,42526.0,0.56921711]
[1704068663698,0.198128,42527.0,42526.0,0.54395711]
[1704068664179,0.198128,42527.0,42526.0,0.55395711]
[1704068664788,0.198128,42527.0,42526.0,0.25421711]
[1704068665011,0.25450528,42527.0,42526.0,0.25421711]
[1704068665385,0.198128,42527.0,42526.0,0.25421711]
[1704068665719,0.668417,42527.0,42526.0,0.25421711]
[1704068666685,0.668417,42527.0,42526.0,0.31379711]
[1704068666890,0.668417,42527.0,42526.0,0.25421711]
[1704068668160,0.668417,42527.0,42526.0,0.30503711]
[1704068668515,0.668417,42527.0,42526.0,0.25421711]
[1704068668919,0.668417,42527.0,42526.0,0.30833711]
[1704068669741,0.668417,42527.0,42526.0,0.25421711]
[1704068670261,0.668417,42527.0,42526.0,0.31253711]
[1704068670469,0.198128,42527.0,42526.0,0.31253711]
[1704068671169,0.198128,42527.0,42526.0,0.34037711]
[1704068672034,0.098128,42527.0,42526.0,0.34037711]
[1704068672664,0.52657016,42530.0,42526.0,0.34037711]
[1704068672665,0.05630616,42530.0,42526.0,0.34037711]
[1704068672872,0.61098232,42534.0,42527.0,0.23321711]
[1704068672873,0.098128,42529.0,42527.0,0.23321711]
[1704068673086,0.098128,42529.0,42527.0,0.46161711]
[1704068673291,0.098128,42530.0,42528.0,0.23388]
[1704068673511,0.098128,42530.0,42528.0,0.46709711]
[1704068673718,0.098128,42532.0,42528.0,0.46709711]
[1704068673928,0.098128,42532.0,42529.0,0.24168]
[1704068674132,0.098128,42532.0,42530.0,0.23321711]
[1704068674345,0.17088049,42537.0,42530.0,0.23321711]
[1704068674547,0.098128,42532.0,42531.0,0.21492]
[1704068674751,0.52647816,42538.0,42531.0,0.44813711]
[1704068674957,0.098128,42533.0,42532.0,0.23321711]
[1704068675163,0.098128,42533.0,42532.0,0.43121711]
[1704068675376,0.470172,42538.0,42532.0,0.43121711]
[1704068675576,0.098128,42533.0,42532.0,0.43121711]
[1704068675779,0.098128,42533.0,42532.0,0.23321711]
[1704068675985,0.098128,42533.0,42532.0,0.43709711]
[1704068676208,0.098128,42533.0,42532.0,0.44509711]
[1704068676826,0.098128,42533.0,42532.0,0.45209711]
[1704068677035,0.198128,42533.0,42532.0,0.35015711]
[1704068680496,0.098128,42533.0,42532.0,0.44969711]
[1704068681785,0.098128,42534.0,42532.0,0.44969711]
[1704068682428,0.098128,42534.0,42533.0,0.2592]
[1704068682648,0.098128,42536.0,42533.0,0.66469711]
[1704068682864,0.098128,42536.0,42535.0,0.23321711]
[1704068683076,0.098128,42536.0,42535.0,0.25621711]
[1704068683509,0.098128,42536.0,42535.0,0.52585711]
[1704068684176,0.098128,42536.0,42535.0,0.53385711]
[1704068684419,0.098128,42536.0,42535.0,0.44845711]
[1704068684636,0.098128,42536.0,42535.0,0.31891711]
[1704068684858,0.098128,42536.0,42535.0,0.32891711]
[1704068686856,0.198128,42536.0,42535.0,0.25121711]
[1704068687090,0.198128,42536.0,42535.0,0.30467711]
[1704068687948,0.198128,42536.0,42535.0,0.25121711]
[1704068691972,0.76087305,42536.0,42535.0,0.018]
[1704068692199,1.18370349,42536.0,42535.0,0.018]
[1704068692450,1.07109117,42536.0,42535.0,0.018]
[1704068692693,1.95128017,42536.0,42535.0,0.018]
[1704068693446,1.95128017,42536.0,42535.0,0.01]
[1704068693663,0.098128,42522.0,42521.0,0.06942]
[1704068693880,0.098128,42522.0,42521.0,0.30263711]
[1704068695480,0.098128,42522.0,42521.0,0.31563711]
[1704068695694,0.098128,42522.0,42521.0,0.32663711]
[1704068696117,0.198128,42522.0,42521.0,0.25721711]
[1704068697438,0.198024,42522.0,42521.0,0.25721711]
[1704068697665,0.668368,42522.0,42521.0,0.25721711]
[1704068698567,0.668368,42522.0,42521.0,0.24421711]
[1704068699001,0.668368,42522.0,42521.0,0.29429711]
[1704068699251,0.669368,42522.0,42521.0,0.29429711]
[1704068699895,0.669368,42522.0,42521.0,0.30429711]
[1704068700323,0.669368,42522.0,42521.0,0.29429711]
[1704068700772,0.669368,42522.0,42521.0,0.29529711]
[1704068702103,0.199024,42522.0,42521.0,0.29529711]
[1704068705267,0.199024,42522.0,42521.0,0.23421711]
[1704068705503,0.199024,42522.0,42521.0,0.28803711]
[1704068705727,0.199024,42522.0,42521.0,0.23421711]
[1704068706438,0.199024,42522.0,42521.0,0.29187711]
[1704068707507,0.199024,42522.0,42521.0,0.28687711]
[1704068713597,0.199024,42522.0,42521.0,0.22921711]
[1704068714036,0.79747756,42522.0,42521.0,0.22921711]
[1704068714674,0.669368,42522.0,42521.0,0.22921711]
[1704068715523,0.669368,42522.0,42521.0,0.32250396]
[1704068715973,0.669368,42522.0,42521.0,0.22921711]
[1704068718770,0.669368,42522.0,42521.0,0.32250396]
[1704068724264,0.669368,42522.0,42521.0,0.37536396]
[1704068724477,0.669368,42522.0,42521.0,0.32250396]
[1704068724694,0.669368,42522.0,42521.0,0.37506396]
[1704068725561,0.669368,42522.0,42521.0,0.22921711]